bitfinex/quotes_BTCUSD_20251120
["timestamp","ask_amount","ask_price","bid_price","bid_amount"]
[1763641366849,0.002,91891.0,91890.0,1.08471314]
[1763641368395,0.04257,91891.0,91890.0,1.08471314]
[1763641368610,0.26021917,91891.0,91890.0,1.08471314]
[1763641369682,0.23581917,91891.0,91890.0,1.08471314]
[1763641370125,0.04257,91891.0,91890.0,1.08471314]
[1763641370272,0.04257,91891.0,91890.0,1.30236467]
[1763641370480,0.26021917,91891.0,91890.0,1.08471314]
[1763641370656,0.04257,91891.0,91890.0,1.30236467]
[1763641370857,0.002,91891.0,91890.0,1.30236467]
[1763641372703,0.26021917,91891.0,91890.0,1.08471314]
[1763641372903,0.23581917,91891.0,91890.0,1.08471314]
[1763641373106,0.03850421,91891.0,91890.0,1.30236467]
[1763641374023,0.03850421,91891.0,91890.0,1.08471314]
[1763641374851,0.03850421,91891.0,91890.0,1.30236467]
[1763641375749,0.02233421,91891.0,91890.0,1.30259467]
[1763641375885,0.02233421,91891.0,91890.0,1.08471314]
[1763641376084,0.25615338,91891.0,91890.0,1.08471314]
[1763641376334,0.28055338,91891.0,91890.0,1.08471314]
[1763641377089,0.33265587,91891.0,91890.0,1.08471314]
[1763641379005,0.75639052,91891.0,91890.0,1.08471314]
[1763641379204,0.76658609,91891.0,91890.0,1.08471314]
[1763641379647,0.76558609,91891.0,91890.0,1.08471314]
[1763641379962,0.76658609,91891.0,91890.0,1.08471314]
[1763641380162,0.76558609,91891.0,91890.0,1.08471314]
[1763641380569,0.76658609,91891.0,91890.0,1.08471314]
[1763641381998,0.66585144,91891.0,91890.0,1.08471314]
[1763641382212,0.68934938,91891.0,91890.0,1.08471314]
[1763641382804,0.68934938,91891.0,91890.0,4.213e-05]
[1763641383707,0.68834938,91891.0,91890.0,4.213e-05]
[1763641384233,0.68934938,91891.0,91890.0,4.213e-05]
[1763641385072,0.67921924,91891.0,91890.0,4.213e-05]
[1763641385273,0.68841906,91891.0,91890.0,4.213e-05]
[1763641385444,0.68841906,91891.0,91890.0,1.08471314]
[1763641385648,0.69309906,91891.0,91890.0,1.08471314]
[1763641386338,0.801264,91891.0,91890.0,1.08471314]
[1763641387137,0.802264,91891.0,91890.0,1.08471314]
[1763641388333,0.802264,91891.0,91890.0,4.213e-05]
[1763641390238,0.69309906,91891.0,91890.0,4.213e-05]
[1763641393878,0.69209906,91891.0,91890.0,4.213e-05]
[1763641394300,0.69309906,91891.0,91890.0,4.213e-05]
[1763641395194,0.69209906,91891.0,91890.0,4.213e-05]
[1763641395365,0.69409906,91891.0,91890.0,4.213e-05]
[1763641395564,0.803264,91891.0,91890.0,4.213e-05]
[1763641395763,0.8032562,91891.0,91890.0,4.213e-05]
[1763641396884,0.22861463,91858.0,91853.0,0.01088696]
[1763641397100,0.24901026,91857.0,91853.0,0.22904487]
[1763641397310,0.01205,91854.0,91853.0,0.22904487]
[1763641397742,0.02743,91854.0,91853.0,0.01130732]
[1763641397938,0.01205,91854.0,91853.0,0.01130732]
[1763641398143,0.01205,91854.0,91853.0,0.22904653]
[1763641398379,0.01205,91859.0,91857.0,0.01088648]
[1763641398591,0.05210249,91862.0,91861.0,0.21772025]
[1763641398802,0.07248745,91862.0,91861.0,1.30239126]
[1763641399212,0.02038496,91862.0,91861.0,1.30239126]
[1763641399510,0.25015284,91862.0,91861.0,1.08467101]
[1763641399731,0.26553284,91862.0,91861.0,1.08467101]
[1763641400105,0.26653284,91862.0,91861.0,1.08467101]
[1763641401294,0.02843,91862.0,91861.0,1.08467101]
[1763641401467,0.01305,91862.0,91861.0,1.30239126]
[1763641401723,0.001,91862.0,91861.0,1.30262126]
[1763641402089,0.01638,91862.0,91861.0,1.08467101]
[1763641402909,0.23409788,91862.0,91861.0,1.08467101]
[1763641404559,0.01638,91862.0,91861.0,1.08467101]
[1763641405428,0.01638,91862.0,91861.0,1.30239126]
[1763641405644,0.001,91862.0,91861.0,1.30239126]
[1763641405857,0.001,91862.0,91861.0,1.30262126]
[1763641406720,0.001,91862.0,91861.0,1.30285126]
[1763641407348,0.01088411,91877.0,91871.0,0.01088482]
[1763641407560,0.01573,91878.0,91876.0,0.21768444]
[1763641407773,0.01573,91878.0,91876.0,0.21768411]
[1763641407978,0.01088376,91880.0,91876.0,0.22856834]
[1763641408185,0.2176784,91879.0,91876.0,0.22856834]
[1763641408389,0.2176812,91878.0,91872.0,0.0108847]
[1763641408627,0.01088435,91875.0,91871.0,1.08467101]
[1763641408827,0.2176926,91873.0,91871.0,1.08467101]
[1763641409015,0.22857395,91874.0,91871.0,1.08467101]
[1763641409225,0.01088423,91876.0,91872.0,0.0108847]
[1763641409434,0.21768752,91875.0,91872.0,0.0108847]
[1763641409633,0.22857187,91875.0,91872.0,0.0108847]
[1763641409972,0.21768968,91874.0,91872.0,0.0108847]
[1763641410180,0.21768968,91874.0,91871.0,1.08467101]
[1763641410386,0.01088447,91874.0,91871.0,1.08467101]
[1763641410591,0.01557,91872.0,91871.0,1.08467101]
[1763641410770,0.01557,91872.0,91871.0,1.30236756]
[1763641411014,0.001,91873.0,91871.0,1.30236756]
[1763641411221,0.001,91873.0,91872.0,0.21769418]
[1763641411424,0.05210249,91877.0,91873.0,0.22857572]
[1763641411630,0.05210249,91877.0,91875.0,0.21768693]
[1763641411810,0.01205,91881.0,91877.0,0.01088411]
[1763641412030,0.02039941,91880.0,91878.0,0.21767996]
[1763641412209,0.01205,91881.0,91878.0,0.22856395]
[1763641412440,0.02040069,91880.0,91879.0,0.21767759]
[1763641412653,0.23807674,91880.0,91877.0,0.01088411]
[1763641412858,0.01205,91881.0,91879.0,0.21767724]
[1763641413061,0.02040069,91880.0,91879.0,0.21767724]
[1763641413677,0.05210249,91884.0,91881.0,0.22855485]
[1763641413842,0.2380681,91883.0,91881.0,1.08467101]
[1763641414065,0.21767049,91882.0,91881.0,1.08467101]
[1763641414496,0.27649964,91882.0,91881.0,1.08467101]
[1763641414813,0.27649964,91882.0,91881.0,1.08471678]
[1763641416451,0.27749964,91882.0,91881.0,1.08471678]
[1763641416857,0.43378725,91882.0,91881.0,1.08471678]
[1763641417029,0.43478725,91882.0,91881.0,1.08471678]
[1763641417591,0.33060213,91882.0,91881.0,1.08471678]
[1763641422243,0.33060227,91882.0,91881.0,1.08471678]
[1763641425998,0.33060227,91882.0,91881.0,1.30238963]
[1763641425999,0.07450178,91882.0,91881.0,1.30238963]
[1763641426372,0.07450178,91882.0,91881.0,1.08471678]
[1763641426373,0.33060227,91882.0,91881.0,1.08471678]
[1763641427039,0.32960227,91882.0,91881.0,1.08471678]
[1763641427499,0.33060227,91882.0,91881.0,1.08471678]
[1763641427867,0.33060284,91882.0,91881.0,1.08471678]
[1763641428287,0.32960284,91882.0,91881.0,1.08471678]
[1763641429211,0.3296068,91882.0,91881.0,1.08471678]
[1763641429960,0.3286068,91882.0,91881.0,1.08471678]
[1763641430375,0.3296068,91882.0,91881.0,1.08471678]
[1763641431241,0.6526068,91882.0,91881.0,1.08471678]
[1763641431628,0.6536068,91882.0,91881.0,1.08471678]
[1763641431845,0.6526068,91882.0,91881.0,4.577e-05]
[1763641432063,0.67712087,91882.0,91881.0,4.577e-05]
[1763641432275,0.68632784,91882.0,91881.0,4.577e-05]
[1763641432488,0.68732784,91882.0,91881.0,4.577e-05]
[1763641433575,0.79649278,91882.0,91881.0,4.577e-05]
[1763641436060,0.68732784,91882.0,91881.0,4.577e-05]
[1763641437198,0.22857403,91874.0,91864.0,0.22859789]
[1763641437425,0.01209,91872.0,91868.0,0.01088518]
[1763641437602,0.01209,91872.0,91871.0,0.21769655]
[1763641437778,0.03251346,91872.0,91871.0,0.21769655]
[1763641438225,0.03251346,91872.0,91870.0,0.21769678]
[1763641438551,0.01209,91872.0,91871.0,0.21769655]
[1763641438698,0.01309,91872.0,91871.0,0.21769655]
[1763641438902,0.03351254,91872.0,91869.0,0.22858635]
[1763641439086,0.22978614,91872.0,91869.0,0.22858635]
[1763641439305,0.24167084,91872.0,91869.0,0.22858635]
[1763641439699,0.01409,91872.0,91870.0,0.21769782]
[1763641439910,0.002,91872.0,91871.0,0.01105963]
[1763641440186,0.001,91872.0,91871.0,0.22875618]
[1763641440395,0.001,91872.0,91871.0,0.21792655]
[1763641440605,0.002,91872.0,91871.0,0.21792655]
[1763641440840,0.001,91872.0,91871.0,0.21815655]
[1763641441040,0.002,91872.0,91871.0,0.21815655]
[1763641441456,0.001,91872.0,91871.0,0.21815655]
[1763641441886,5.03e-05,91874.0,91873.0,0.21769181]
[1763641442111,5.03e-05,91874.0,91873.0,0.21792181]
[1763641442312,5.03e-05,91874.0,91873.0,0.21815181]
[1763641445628,5.03e-05,91874.0,91873.0,0.21769181]
[1763641446267,5.03e-05,91874.0,91873.0,0.22137181]
[1763641446526,5.03e-05,91874.0,91873.0,0.21769181]
[1763641449961,5.03e-05,91874.0,91871.0,0.01088482]
[1763641449962,0.04997477,91874.0,91871.0,0.01088482]
[1763641450170,0.31552471,91874.0,91871.0,0.01088482]
[1763641450395,0.22857987,91872.0,91869.0,0.22858635]
[1763641450592,0.0108847,91872.0,91869.0,0.22858635]
[1763641451192,0.03358477,91874.0,91870.0,0.21769829]
[1763641451397,0.03358477,91874.0,91870.0,0.01088494]
[1763641451560,0.0108847,91872.0,91868.0,0.01088518]
[1763641451782,0.0108847,91872.0,91866.0,0.01456542]
[1763641451783,0.02782,91869.0,91866.0,0.00368]
[1763641451980,0.01143,91869.0,91866.0,0.01456542]
[1763641452191,0.01143,91869.0,91866.0,0.00368]
[1763641452451,0.01639,91867.0,91864.0,1.30238411]
[1763641452661,0.01639,91867.0,91864.0,1.31326976]
[1763641452858,0.21770458,91868.0,91865.0,0.21771045]
[1763641453121,0.22858976,91868.0,91864.0,1.09555666]
[1763641453499,0.0108853,91867.0,91864.0,1.08467101]
[1763641453704,0.21771005,91866.0,91864.0,1.08467101]
[1763641454048,0.21771077,91865.0,91864.0,1.08467101]
[1763641455020,0.25675077,91865.0,91864.0,1.08467101]
[1763641456029,0.40742483,91865.0,91864.0,1.08467101]
[1763641456324,0.30985326,91865.0,91864.0,1.08467101]
[1763641459453,0.28720326,91865.0,91864.0,1.08467101]
[1763641460035,0.30985326,91865.0,91864.0,1.08467101]
[1763641460455,0.06949249,91865.0,91864.0,1.08467101]
[1763641461027,0.06949249,91865.0,91864.0,1.30238415]
[1763641461140,0.06949249,91865.0,91864.0,1.08467101]
[1763641461335,0.28720326,91865.0,91864.0,1.08467101]
[1763641461746,0.30985326,91865.0,91864.0,1.08467101]
[1763641467313,0.28720326,91865.0,91864.0,1.08467101]
[1763641467491,0.001,91865.0,91864.0,1.08467101]
[1763641467692,0.21871077,91865.0,91864.0,1.08467101]
[1763641468244,0.001,91865.0,91864.0,1.08467101]
[1763641468740,0.001,91865.0,91864.0,1.30238415]
[1763641471576,0.001,91865.0,91864.0,1.08467101]
[1763641471782,0.001,91865.0,91864.0,1.30238415]
[1763641471962,0.001,91865.0,91864.0,1.08467101]
[1763641472585,0.21871077,91865.0,91864.0,1.08467101]
[1763641472960,0.25874077,91865.0,91864.0,1.08467101]
[1763641475320,0.01675,91865.0,91864.0,1.08467101]
[1763641475523,0.001,91865.0,91864.0,1.30238415]
[1763641475903,0.001,91865.0,91864.0,1.08467101]
[1763641476532,0.21871077,91865.0,91864.0,1.08467101]
[1763641478732,0.23446077,91865.0,91864.0,1.08467101]
[1763641478959,0.25874077,91865.0,91864.0,1.08467101]
[1763641479121,0.23446077,91865.0,91864.0,1.08467101]
[1763641480339,0.001,91865.0,91864.0,1.30238415]
[1763641480569,0.21871077,91865.0,91864.0,1.08467101]
[1763641480989,0.001,91865.0,91864.0,1.08467101]
[1763641481397,0.001,91865.0,91864.0,1.30238415]
[1763641482000,0.001,91865.0,91864.0,1.08467101]
[1763641482200,0.21871077,91865.0,91864.0,1.08467101]
[1763641482399,0.001,91865.0,91864.0,1.08467101]
[1763641483214,0.21871077,91865.0,91864.0,1.08467101]
[1763641484137,0.27917464,91865.0,91864.0,1.08467101]
[1763641484380,0.0108866,91856.0,91853.0,0.23230612]
[1763641484591,0.0108866,91856.0,91853.0,1.09923797]
[1763641484769,0.22861892,91856.0,91853.0,1.08835101]
[1763641485006,0.21773468,91855.0,91853.0,1.30608985]
[1763641485239,0.21772991,91857.0,91855.0,0.21773425]
[1763641485443,0.21772991,91857.0,91854.0,0.01088684]
[1763641485620,0.22861399,91858.0,91855.0,0.2177342]
[1763641485862,0.01088565,91864.0,91860.0,0.01088613]
[1763641486071,0.02428,91869.0,91853.0,1.30608968]
[1763641486072,0.02088493,91870.0,91864.0,0.01088565]
[1763641486264,0.02043691,91869.0,91864.0,1.09555666]
[1763641486464,0.02043691,91868.0,91866.0,0.22859149]
[1763641486675,0.02043691,91867.0,91866.0,0.22859149]
[1763641486884,0.21774151,91874.0,91871.0,0.01088482]
[1763641487107,0.02043602,91873.0,91872.0,0.21769418]
[1763641487326,5.03e-05,91874.0,91873.0,0.21769181]
[1763641487495,5.03e-05,91874.0,91872.0,0.21792418]
[1763641487861,0.01088459,91873.0,91866.0,0.00368]
[1763641488061,0.01088459,91873.0,91867.0,0.0108853]
[1763641488062,0.21769708,91871.0,91867.0,0.0108853]
[1763641488267,0.001,91869.0,91867.0,0.0108853]
[1763641488823,0.2285819,91871.0,91868.0,0.21770355]
[1763641489231,0.22858386,91870.0,91866.0,0.00368]
[1763641489483,0.01088482,91871.0,91869.0,0.21770129]
[1763641489624,0.2177041,91868.0,91866.0,0.00368]
[1763641489830,0.22858659,91869.0,91866.0,0.00368]
[1763641490028,0.22858105,91872.0,91869.0,0.22858463]
[1763641490233,0.01088482,91871.0,91868.0,0.21770366]
[1763641490464,0.01088482,91871.0,91868.0,0.22858884]
[1763641490818,0.06021143,91872.0,91869.0,0.01088506]
[1763641491041,0.04932673,91872.0,91871.0,0.21769655]
[1763641491283,0.0118303,91874.0,91873.0,0.21769181]
[1763641491482,0.0118303,91874.0,91872.0,0.21769387]
[1763641491689,0.0118303,91874.0,91873.0,0.21769181]
[1763641492549,0.21769752,91871.0,91864.0,1.08467101]
[1763641492755,0.21770603,91867.0,91864.0,1.08467101]
[1763641492964,0.21771077,91865.0,91864.0,1.08467101]
[1763641493169,0.0108853,91867.0,91864.0,1.08467101]
[1763641493375,0.22859135,91867.0,91864.0,1.08467101]
[1763641493591,0.01575,91865.0,91864.0,1.08467101]
[1763641493796,0.2294887,91866.0,91864.0,1.08467101]
[1763641493998,0.21771077,91865.0,91864.0,1.08467101]
[1763641494206,0.01178,91866.0,91864.0,1.08467101]
[1763641494410,0.22948923,91866.0,91864.0,1.08467101]
[1763641494795,0.01178,91866.0,91864.0,1.30238193]
[1763641494949,0.01178,91866.0,91864.0,1.08467101]
[1763641495362,0.22948854,91866.0,91864.0,1.08467101]
[1763641495616,0.00999999,91870.0,91867.0,0.0108853]
[1763641496001,0.00999999,91870.0,91868.0,0.2177015]
[1763641496260,0.00999999,91870.0,91869.0,0.21770129]
[1763641496563,0.02088493,91870.0,91867.0,0.22859112]
[1763641496774,0.02188493,91870.0,91868.0,0.21770284]
[1763641496963,0.01099999,91870.0,91869.0,0.21770129]
[1763641497233,0.21770255,91869.0,91867.0,0.0108853]
[1763641497446,0.23958385,91870.0,91868.0,0.21770346]
[1763641497663,0.21771077,91865.0,91864.0,1.08467101]
[1763641497877,0.26068585,91865.0,91864.0,1.08467101]
[1763641498085,0.28496585,91865.0,91864.0,1.08467101]
[1763641498907,0.33706834,91865.0,91864.0,1.08467101]
[1763641499148,0.30984326,91865.0,91864.0,1.08467101]
[1763641499590,0.31084326,91865.0,91864.0,1.08467101]
[1763641500626,0.3312612,91865.0,91864.0,1.08467101]
[1763641501102,0.01088897,91836.0,91830.0,0.0004]
[1763641501309,0.24531426,91834.0,91833.0,4.08467101]
[1763641501746,0.26959426,91834.0,91833.0,4.08467101]
[1763641501953,0.32169675,91834.0,91833.0,3.87531743]
[1763641502171,0.6651071,91834.0,91833.0,3.87531743]
[1763641502417,0.66515737,91834.0,91833.0,3.87531743]
[1763641502611,0.66515737,91834.0,91833.0,2.79064642]
[1763641503034,0.67534896,91834.0,91833.0,2.79064642]
[1763641503283,0.66515737,91834.0,91833.0,2.79064642]
[1763641503486,0.77532231,91834.0,91833.0,2.79064642]
[1763641503705,0.80795379,91834.0,91833.0,2.79064642]
[1763641504082,0.80895379,91834.0,91833.0,2.79064642]
[1763641504291,0.78550071,91834.0,91833.0,2.79064642]
[1763641504589,0.78450071,91834.0,91833.0,1.80249642]
[1763641505029,0.78750071,91834.0,91833.0,1.80249642]
[1763641505230,0.78650071,91834.0,91833.0,1.80249642]
[1763641505437,0.78450071,91834.0,91833.0,1.80249642]
[1763641505644,0.78650071,91834.0,91833.0,1.80249642]
[1763641505834,0.67933577,91834.0,91833.0,1.80249642]
[1763641506163,0.66915737,91834.0,91833.0,1.80249642]
[1763641507171,0.6998739,91834.0,91833.0,1.80249642]
[1763641507373,0.7018739,91834.0,91833.0,1.80249642]
[1763641507578,0.7055539,91834.0,91833.0,1.80249642]
[1763641508422,0.68314355,91834.0,91833.0,1.80249642]
[1763641508623,0.70341865,91834.0,91833.0,1.80249642]
[1763641508824,0.70541865,91834.0,91833.0,1.80249642]
[1763641509025,0.81458359,91834.0,91833.0,1.80249642]
[1763641510277,0.70541865,91834.0,91833.0,1.80249642]
[1763641513303,0.67270212,91834.0,91833.0,1.80249642]
[1763641513851,0.67266728,91834.0,91833.0,1.80249642]
[1763641514485,0.67066728,91834.0,91833.0,1.80249642]
[1763641514687,0.66866728,91834.0,91833.0,1.80249642]
[1763641514888,0.67266728,91834.0,91833.0,1.80249642]
[1763641515687,0.67066728,91834.0,91833.0,1.80249642]
[1763641516310,0.66866728,91834.0,91833.0,1.80249642]
[1763641516514,0.67266728,91834.0,91833.0,1.80249642]
[1763641517124,0.67066728,91834.0,91833.0,1.80249642]
[1763641517323,0.67266728,91834.0,91833.0,1.80249642]
[1763641517705,0.78183222,91834.0,91833.0,1.80249642]
[1763641518118,0.78183222,91834.0,91833.0,1.29093675]
[1763641518408,0.67266728,91834.0,91833.0,1.29093675]
[1763641519442,0.68278656,91834.0,91833.0,1.29093675]
[1763641522415,0.67878656,91834.0,91833.0,1.29093675]
[1763641522831,0.67910656,91834.0,91833.0,1.29093675]
[1763641523041,0.61688479,91834.0,91833.0,1.29093675]
[1763641523241,0.67266728,91834.0,91833.0,1.29093675]
[1763641523609,0.66698728,91834.0,91833.0,1.29093675]
[1763641523815,0.67068876,91834.0,91833.0,1.29093675]
[1763641524016,0.67268876,91834.0,91833.0,1.29093675]
[1763641524423,0.67068876,91834.0,91833.0,1.29093675]
[1763641524621,0.67268876,91834.0,91833.0,1.29093675]
[1763641527299,0.68285242,91834.0,91833.0,1.29093675]
[1763641528322,0.706291,91834.0,91833.0,1.29093675]
[1763641530897,0.81545594,91834.0,91833.0,1.29093675]
[1763641531601,0.84482244,91834.0,91833.0,1.29093675]
[1763641531805,0.7356575,91834.0,91833.0,1.29093675]
[1763641533093,0.7319775,91834.0,91833.0,1.29093675]
[1763641533305,0.706291,91834.0,91833.0,1.29093675]
[1763641539422,0.706291,91834.0,91833.0,1.05715846]
[1763641543095,0.7590529,91834.0,91833.0,1.05715846]
[1763641543293,0.706291,91834.0,91833.0,1.05715846]
[1763641543605,0.70647059,91834.0,91833.0,1.05715846]
[1763641549073,0.70654436,91834.0,91833.0,1.05715846]
[1763641551969,0.73925971,91834.0,91833.0,1.05715846]
[1763641553196,0.73725971,91834.0,91833.0,1.05715846]
[1763641553408,0.84642465,91834.0,91833.0,1.05715846]
[1763641553610,0.84642465,91834.0,91833.0,0.3794391]
[1763641553846,0.9052445,91834.0,91833.0,0.17710354]
[1763641554052,0.59289386,91831.0,91830.0,0.0004]
[1763641554264,0.6750612,91831.0,91830.0,0.0004]
[1763641554471,0.6750612,91831.0,91797.0,1.08467101]
[1763641554472,0.29802216,91798.0,91797.0,1.08467101]
[1763641554677,0.32210549,91798.0,91797.0,1.08467101]
[1763641554918,0.34668549,91798.0,91797.0,1.08467101]
[1763641555333,0.32628216,91798.0,91797.0,1.08467101]
[1763641555507,0.34668512,91798.0,91797.0,1.08467101]
[1763641555710,0.34668512,91798.0,91797.0,1.08509137]
[1763641556415,0.32628216,91798.0,91797.0,1.08509137]
[1763641557105,0.32728216,91798.0,91797.0,1.08509137]
[1763641559199,0.10941249,91798.0,91797.0,1.08509137]
[1763641559393,0.32728216,91798.0,91797.0,1.08509137]
[1763641559601,0.32728216,91798.0,91797.0,0.00042036]
[1763641561202,0.02805,91788.0,91778.0,0.22881162]
[1763641561417,0.01089478,91787.0,91784.0,1.08467101]
[1763641561625,0.21790052,91785.0,91784.0,1.08467101]
[1763641561821,0.25894052,91785.0,91784.0,1.08467101]
[1763641563016,0.01746,91785.0,91784.0,1.08467101]
[1763641563453,0.001,91785.0,91784.0,1.30257391]
[1763641566413,0.001,91785.0,91784.0,1.30303391]
[1763641568019,0.00999999,91790.0,91789.0,0.21789103]
[1763641568254,0.00999999,91790.0,91789.0,0.21812103]
[1763641568984,0.01099999,91790.0,91789.0,0.21812103]
[1763641571290,0.01099999,91790.0,91789.0,0.21835103]
[1763641571498,0.01099999,91790.0,91789.0,0.21812103]
[1763641573050,0.01099999,91790.0,91789.0,0.21835103]
[1763641574060,0.01099999,91790.0,91789.0,0.00023]
[1763641574487,0.01099999,91790.0,91789.0,0.21812103]
[1763641575548,0.01099999,91790.0,91789.0,0.00023]
[1763641575910,0.01099999,91790.0,91789.0,0.21812103]
[1763641577750,0.01099999,91790.0,91789.0,0.00023]
[1763641577954,0.01089478,91787.0,91784.0,1.30257296]
[1763641578156,0.22879069,91787.0,91784.0,1.08467101]
[1763641578359,0.21790052,91785.0,91784.0,1.08467101]
[1763641578674,0.21790052,91785.0,91784.0,1.0849326]
[1763641579051,0.00999999,91790.0,91789.0,0.21789103]
[1763641579218,0.05210249,91796.0,91794.0,0.01089395]
[1763641579437,0.05210249,91796.0,91794.0,1.31344332]
[1763641579827,0.05210249,91796.0,91795.0,0.21787679]
[1763641580051,0.05210249,91796.0,91794.0,1.31344332]
[1763641580427,0.05210249,91796.0,91795.0,0.21787679]
[1763641580836,0.05310249,91796.0,91795.0,0.21787679]
[1763641581033,0.001,91796.0,91795.0,0.21787679]
[1763641581578,0.001,91796.0,91794.0,1.09556496]
[1763641581579,0.21787679,91795.0,91794.0,1.08467101]
[1763641582209,0.012,91797.0,91796.0,0.21787441]
[1763641582342,0.012,91797.0,91795.0,0.21787679]
[1763641582343,0.002,91796.0,91795.0,0.21787679]
[1763641582898,0.001,91796.0,91795.0,0.21810679]
[1763641583466,0.05210249,91803.0,91802.0,0.21786017]
[1763641583666,0.07251557,91803.0,91799.0,0.21786503]
[1763641583878,0.02041308,91802.0,91800.0,0.21786492]
[1763641584078,0.01089289,91803.0,91801.0,0.21786124]
[1763641584295,0.01089289,91803.0,91800.0,0.22875816]
[1763641584493,0.01089312,91801.0,91798.0,0.01089348]
[1763641584694,0.21786493,91800.0,91798.0,0.22876306]
[1763641584903,0.21786493,91800.0,91797.0,0.21787104]
[1763641585104,0.22875397,91802.0,91798.0,0.21786965]
[1763641585358,0.22875397,91802.0,91781.0,1.08467101]
[1763641585359,0.21789815,91786.0,91781.0,1.08467101]
[1763641585526,0.01619,91786.0,91783.0,0.01089526]
[1763641585729,0.25769815,91786.0,91781.0,1.08467101]
[1763641585952,0.23408815,91786.0,91781.0,1.08467101]
[1763641586648,0.23408815,91786.0,91783.0,0.01089526]
[1763641586847,0.05210249,91790.0,91786.0,0.0108949]
[1763641587026,0.05210249,91790.0,91789.0,0.21789103]
[1763641587236,0.05210249,91793.0,91790.0,0.21788849]
[1763641587435,0.05210249,91791.0,91790.0,0.21788808]
[1763641587635,0.07251033,91791.0,91790.0,0.21788808]
[1763641587829,0.06299644,91794.0,91763.0,0.4359052]
[1763641588036,0.2178914,91789.0,91784.0,0.01087908]
[1763641588286,0.21789769,91787.0,91781.0,1.09556651]
[1763641588463,0.22879331,91786.0,91781.0,1.09556651]
[1763641588660,0.0108949,91786.0,91781.0,1.08467101]
[1763641588876,0.22879483,91786.0,91781.0,1.08467101]
[1763641589073,0.01089514,91784.0,91781.0,1.09556651]
[1763641589272,0.22879554,91785.0,91781.0,1.31347431]
[1763641589478,0.01089502,91785.0,91781.0,1.08467101]
[1763641589699,0.60879014,91782.0,91780.0,0.00047359]
[1763641589858,0.62919374,91781.0,91780.0,0.00047359]
[1763641590055,0.65184374,91781.0,91780.0,0.00047359]
[1763641591176,0.66899603,91781.0,91780.0,0.00047359]
[1763641591378,0.66898055,91781.0,91780.0,0.00047359]
[1763641591594,0.65282826,91781.0,91780.0,0.00047359]
[1763641592177,0.65382826,91781.0,91780.0,0.00047359]
[1763641595542,0.63344251,91781.0,91780.0,0.00047359]
[1763641597768,0.63344251,91781.0,91777.0,0.00023256]
[1763641597769,0.59301963,91778.0,91777.0,0.00023256]
[1763641597991,0.59301963,91778.0,91777.0,0.00031531]
[1763641597992,0.6288403,91778.0,91777.0,0.00031531]
[1763641598195,0.6526003,91778.0,91777.0,0.00031531]
[1763641599293,0.6536003,91778.0,91777.0,0.00031531]
[1763641600491,0.6556003,91778.0,91777.0,0.00031531]
[1763641601034,0.6592803,91778.0,91777.0,0.00031531]
[1763641603350,0.6556003,91778.0,91777.0,0.00031531]
[1763641603547,0.6556003,91778.0,91777.0,0.00102531]
[1763641603548,0.003,91778.0,91777.0,0.00102531]
[1763641603746,0.22091714,91778.0,91777.0,0.00031531]
[1763641604113,0.003,91778.0,91777.0,0.00031531]
[1763641604557,0.33947927,91778.0,91777.0,0.00031531]
[1763641604756,0.31123963,91778.0,91777.0,0.00031531]
[1763641605020,0.31223963,91778.0,91777.0,0.00031531]
[1763641605255,0.07056249,91778.0,91777.0,0.00031531]
[1763641605434,0.31023963,91778.0,91777.0,0.00031531]
[1763641605637,0.39120614,91778.0,91777.0,0.00031531]
[1763641605835,0.63423963,91778.0,91777.0,0.00031531]
[1763641606064,0.65459119,91778.0,91777.0,0.00031531]
[1763641608305,0.65359119,91778.0,91777.0,0.00031531]
[1763641608639,0.65459119,91778.0,91777.0,0.00031531]
[1763641609251,0.65359119,91778.0,91777.0,0.00031531]
[1763641609667,0.65559119,91778.0,91777.0,0.00031531]
[1763641611281,0.76475613,91778.0,91777.0,0.00031531]
[1763641611715,0.65559119,91778.0,91777.0,0.00031531]
[1763641616290,0.67907184,91778.0,91777.0,0.00031531]
[1763641616776,0.65927119,91778.0,91777.0,0.00031531]
[1763641617012,0.68275208,91778.0,91777.0,0.00031531]
[1763641617233,0.63551119,91778.0,91777.0,0.00031531]
[1763641617854,0.65827119,91778.0,91777.0,0.00031531]
[1763641618310,0.65727119,91778.0,91777.0,0.00031531]
[1763641618735,0.65827119,91778.0,91777.0,0.00031531]
[1763641619959,0.63451119,91778.0,91777.0,0.00031531]
[1763641620085,0.63445376,91778.0,91777.0,0.00031531]
[1763641620913,0.65721376,91778.0,91777.0,0.00031531]
[1763641621215,0.33521376,91778.0,91777.0,0.00031531]
[1763641621555,0.33421376,91778.0,91777.0,0.00031531]
[1763641621758,0.33521376,91778.0,91777.0,0.00031531]
[1763641622328,0.33153376,91778.0,91777.0,0.00031531]
[1763641622528,0.33521376,91778.0,91777.0,0.00031531]
[1763641622695,0.31145376,91778.0,91777.0,0.00031531]
[1763641623106,0.30777376,91778.0,91777.0,0.00031531]
[1763641623307,0.30777376,91778.0,91772.0,0.22882758]
[1763641623308,0.10443247,91778.0,91774.0,0.21792663]
[1763641623555,0.05210249,91775.0,91773.0,0.22882519]
[1763641623752,0.03206535,91778.0,91774.0,0.21792664]
[1763641623753,0.00208693,91778.0,91774.0,0.21792664]
[1763641623956,0.00208693,91778.0,91777.0,0.21867952]
[1763641624409,0.00108693,91778.0,91777.0,0.21867952]
[1763641624580,8.693e-05,91778.0,91777.0,0.21867952]
[1763641624781,8.693e-05,91778.0,91777.0,0.00076]
[1763641624962,0.01298278,91778.0,91773.0,0.01089645]
[1763641625165,0.00208693,91778.0,91774.0,0.22882286]
[1763641625508,0.00208693,91778.0,91771.0,0.01089668]
[1763641625509,0.22882075,91775.0,91771.0,0.01089668]
[1763641625731,0.22882075,91775.0,91770.0,0.0112968]
[1763641626087,0.22882075,91775.0,91771.0,0.2288303]
[1763641626289,0.22882075,91775.0,91772.0,0.01089656]
[1763641626493,0.21792667,91774.0,91772.0,0.01089656]
[1763641626658,0.01198278,91778.0,91775.0,0.21792247]
[1763641626659,0.22890445,91778.0,91775.0,0.21792247]
[1763641626859,8.693e-05,91778.0,91777.0,0.21791952]
[1763641627485,0.00108693,91778.0,91777.0,0.21791952]
[1763641628066,8.693e-05,91778.0,91775.0,0.22881868]
[1763641628279,0.00108693,91778.0,91776.0,0.2179198]
[1763641628696,0.00108693,91778.0,91772.0,0.22882588]
[1763641628697,0.21791952,91777.0,91772.0,0.22882588]
[1763641628895,0.01098278,91778.0,91769.0,1.31350409]
[1763641629106,0.00108693,91778.0,91777.0,0.21791952]
[1763641629551,0.00208693,91778.0,91777.0,0.21791952]
[1763641629729,0.00108693,91778.0,91777.0,0.21791952]
[1763641629930,0.00108693,91778.0,91777.0,0.21867952]
[1763641630126,0.00208693,91778.0,91777.0,0.21867952]
[1763641630333,0.00108693,91778.0,91777.0,0.00076]
[1763641630531,0.21791991,91777.0,91775.0,0.01088537]
[1763641630769,0.001,91777.0,91775.0,0.23970573]
[1763641630946,0.21792189,91776.0,91774.0,0.01089633]
[1763641631115,0.21792427,91775.0,91774.0,0.01088668]